bitfinex-derivatives/quotes_ETHF0:USTF0_20210111
["timestamp","ask_amount","ask_price","bid_price","bid_amount"]
[1610362673283,3.3327,1114.1,1113.1,76.98699381]
[1610362673483,1.5502,1114.1,1113.1,76.98699381]
[1610362673985,6.2121,1114.3,1113.1,76.98699381]
[1610362674484,8.032,1114.3,1113.1,76.98699381]
[1610362674984,8.032,1114.3,1113.1,78.79979381]
[1610362675185,8.032,1114.3,1113.1,74.79020381]
[1610362675385,8.032,1114.3,1113.1,72.7044]
[1610362675584,18.7667,1114.3,1113.1,2.3366]
[1610362675984,18.7667,1114.3,1112.9,67.9317]
[1610362676385,4.00959,1113.0,1112.9,67.9317]
[1610362676984,4.00959,1113.0,1112.6,4.28271401]
[1610362677986,4.00959,1113.0,1112.6,4.00959]
[1610362678184,2.4276,1113.4,1112.6,5.81149]
[1610362678385,6.43719,1113.4,1113.3,4.00959]
[1610362678985,2.4276,1113.4,1113.3,5.79909]
[1610362679185,2.4276,1113.4,1113.3,4.00959]
[1610362679186,4.208,1113.4,1113.3,4.00959]
[1610362679585,0.741,1113.4,1113.3,4.00959]
[1610362679786,8.2191,1114.3,1113.3,4.00959]
[1610362679985,8.2191,1114.3,1113.0,0.27302821]
[1610362680386,4.00959,1113.4,1113.2,4.00959]
[1610362680786,5.82579,1113.4,1113.2,5.81389]
[1610362680987,4.00959,1113.4,1113.2,4.00959]
[1610362681186,4.00959,1113.4,1113.0,0.27302821]
[1610362681787,4.00959,1113.4,1112.8,0.27306264]
[1610362682188,4.00959,1113.4,1112.8,1.7824]
[1610362682389,4.00959,1112.9,1112.8,1.7824]
[1610362682586,5.77969,1112.9,1112.8,1.7824]
[1610362683889,5.77969,1112.9,1112.6,4.28269872]
[1610362683890,4.00959,1112.9,1112.6,4.28269872]
[1610362684488,4.00959,1112.7,1112.6,4.28269872]
[1610362684889,2.1622,1113.5,1112.6,4.28269872]
[1610362685689,2.1622,1113.5,1112.7,0.27313295]
[1610362686089,2.1622,1113.5,1112.8,0.27310212]
[1610362686290,1.5121,1113.8,1112.9,0.27307828]
[1610362686490,4.00959,1113.7,1113.4,4.00959]
[1610362686689,2.0681,1113.8,1113.5,5.0]
[1610362688491,4.00959,1113.7,1113.5,5.0]
[1610362692492,4.00959,1113.7,1113.5,9.00959]
[1610362694193,4.00959,1113.7,1113.5,5.0]
[1610362701906,5.78249,1113.7,1113.5,5.0]
[1610362702108,5.78249,1113.7,1113.5,3.6187]
[1610362702308,5.78249,1113.7,1113.5,2.3528]
[1610362702908,5.78249,1113.7,1112.8,54.6838]
[1610362704509,4.00959,1112.9,1112.8,54.6838]
[1610362704809,6.46359,1112.9,1112.8,54.6838]
[1610362705208,6.46359,1112.9,1112.5,73.826]
[1610362706510,4.00959,1112.6,1112.5,73.826]
[1610362708111,4.00959,1112.6,1112.5,75.19225894]
[1610362709113,6.46309,1112.6,1112.5,75.19225894]
[1610362710912,6.46309,1112.6,1112.5,73.826]
[1610362714622,6.46309,1112.6,1111.5,71.9278]
[1610362714623,51.2328,1112.5,1111.5,71.9278]
[1610362716324,51.2328,1112.5,1111.6,1.36717102]
[1610362716522,4.00959,1111.7,1111.6,1.36717102]
[1610362719926,1.7193,1111.9,1111.6,1.36717102]
[1610362720527,4.00959,1112.2,1111.8,4.00959]
[1610362720726,2.454,1112.9,1111.8,4.00959]
[1610362721330,58.86172762,1113.5,1111.8,4.00959]
[1610362721527,65.24717796,1113.6,1111.8,4.28293021]
[1610362721728,65.24717796,1113.6,1111.9,1.36670757]
[1610362721930,6.3634,1113.6,1111.9,1.64003203]
[1610362722128,51.33361448,1113.6,1111.9,1.64003203]
[1610362722528,4.00959,1112.0,1111.9,1.36670757]
[1610362723128,4.00959,1112.0,1111.7,0.27338047]
[1610362723333,4.00959,1112.0,1111.5,0.54676093]
[1610362723334,4.00959,1112.0,1111.6,0.2734021]
[1610362723530,4.00959,1112.0,1111.5,0.27341199]
[1610362724533,4.00959,1111.6,1111.4,2.3536]
[1610362724933,4.00959,1111.6,1111.2,0.2734879]
[1610362725532,4.00959,1111.6,1111.1,2.42401109]
[1610362725933,4.00959,1111.6,1111.3,1.36760761]
[1610362726533,4.00959,1111.4,1111.3,1.36760761]
[1610362727433,4.00959,1111.4,1111.2,1.36772193]
[1610362728236,4.00959,1111.4,1111.1,2.1505]
[1610362728436,4.00959,1111.4,1111.0,61.4964]
[1610362728637,4.00959,1111.1,1111.0,61.4964]
[1610362730238,4.00959,1111.1,1111.0,62.86437488]
[1610362730739,1.7429,1111.7,1111.0,62.86437488]
[1610362731640,1.7429,1111.7,1111.1,1.36780235]
[1610362732540,4.00959,1111.2,1111.1,1.36780235]
[1610362733440,1.7429,1111.7,1111.1,1.36780235]
[1610362733842,1.8574,1112.0,1111.0,0.27353488]
[1610362734042,1.801,1112.3,1111.1,0.27352878]
[1610362734242,1.5504,1112.6,1111.1,1.89442878]
[1610362734442,16.05885061,1113.1,1111.1,1.89442878]
[1610362734443,58.89061354,1113.1,1111.3,0.27345248]
[1610362734643,4.00959,1112.2,1111.9,4.00959]
[1610362735842,4.00959,1112.2,1112.0,1.36698482]
[1610362737243,4.00959,1112.2,1111.7,1.36707321]
[1610362737846,5.64379,1112.2,1111.7,1.36707321]
[1610362738444,5.64379,1112.2,1111.4,1.36751815]
[1610362738645,4.00959,1111.5,1111.4,1.36751815]
[1610362739745,4.00959,1111.5,1111.3,1.367483]
[1610362742650,4.00959,1111.5,1111.2,1.3678616]
[1610362744049,4.00959,1111.5,1110.8,1.36806969]
[1610362744649,1.9298,1111.6,1110.8,1.36806969]
[1610362745252,1.9298,1111.6,1110.8,1.64166471]
[1610362745650,1.9298,1111.6,1110.8,1.36806969]
[1610362746650,4.00959,1110.9,1110.8,1.36806969]
[1610362748454,4.00959,1110.9,1110.7,1.36859936]
[1610362748958,4.00959,1110.9,1110.7,1.20429936]
[1610362749154,4.00959,1110.9,1110.7,9.936e-05]
[1610362749755,4.00959,1110.9,1110.3,58.4965]
[1610362750155,5.80339,1110.9,1110.3,58.4965]
[1610362750755,4.00959,1110.4,1110.3,58.4965]
[1610362752157,14.39389,1110.4,1109.7,0.27384677]
[1610362752357,14.39389,1110.4,1109.6,0.27388014]
[1610362752757,4.00959,1109.7,1109.5,0.27387694]
[1610362752965,10.3843,1110.4,1109.5,0.27387694]
[1610362753162,10.3843,1110.4,1109.6,0.27386554]
[1610362753362,10.3843,1110.4,1109.7,0.27385319]
[1610362754562,12.1792,1110.4,1109.7,0.27385319]
[1610362754763,4.00959,1109.9,1109.7,4.28344319]
[1610362755963,4.00959,1109.9,1109.7,3.28344319]
[1610362756363,4.00959,1109.9,1109.6,0.54770168]
[1610362756764,4.00959,1109.7,1109.4,0.5477997]
[1610362757864,4.00959,1109.7,1109.2,76.895674]
[1610362758564,4.00959,1109.7,1109.3,1.36977937]
[1610362758765,4.00959,1109.4,1109.3,3.15077937]
[1610362759864,4.00959,1109.4,1109.3,1.36977937]
[1610362760065,4.00959,1109.4,1109.2,72.3382]
[1610362761368,4.00959,1109.4,1109.3,1.37002595]
[1610362762768,4.00959,1109.4,1109.0,1.37024043]
[1610362764169,4.00959,1109.4,1108.8,1.91826915]
[1610362764569,4.00959,1109.4,1108.9,0.54804513]
[1610362764869,4.00959,1109.4,1109.2,4.00959]
[1610362765569,4.00959,1109.4,1108.9,0.54804513]
[1610362765972,4.00959,1109.4,1108.8,0.54805727]
[1610362766169,4.00959,1109.4,1108.9,0.27404037]
[1610362766869,1.6534,1109.5,1108.8,0.54805727]
[1610362766870,4.00959,1109.0,1108.8,0.27404305]
[1610362767273,4.00959,1109.0,1108.7,0.27406176]
[1610362768473,4.00959,1109.0,1108.8,1.37054441]
[1610362769874,4.00959,1109.0,1108.7,1.37068935]
[1610362770975,4.00959,1108.8,1108.7,1.37068935]
[1610362771975,4.00959,1108.8,1108.6,0.27412695]
[1610362772875,4.00959,1108.8,1108.7,5.38022755]
[1610362773275,4.00959,1108.8,1108.7,1.37063755]
[1610362775975,5.80239,1108.8,1108.7,1.37063755]
[1610362776176,4.00959,1108.8,1108.7,1.37063755]
[1610362776377,4.00959,1108.8,1108.7,1.64472676]
[1610362776776,4.00959,1108.8,1108.7,1.37063755]
[1610362779178,5.83799,1108.8,1108.7,3.17003755]
[1610362779377,4.00959,1108.8,1108.7,1.37063755]
[1610362779777,4.00959,1108.8,1108.6,1.37064661]
[1610362779977,1.8052,1108.9,1108.6,1.37064661]
[1610362780177,1.8052,1108.9,1108.6,1.64475952]
[1610362780977,5.81479,1108.9,1108.8,4.00959]
[1610362781779,1.8052,1108.9,1108.8,4.00959]
[1610362782181,2.2662,1109.2,1108.8,4.28365723]
[1610362782581,1.6534,1109.5,1108.8,4.28365723]
[1610362782781,1.6534,1109.5,1108.8,5.65394901]
[1610362782981,65.1611,1109.8,1109.2,4.00959]
[1610362782982,4.00959,1109.4,1109.2,4.00959]
[1610362783183,6.04539,1109.4,1109.2,4.00959]
[1610362783982,6.04539,1109.4,1109.3,1.37025358]
[1610362785383,6.04539,1109.4,1109.0,1.37057051]
[1610362786986,4.00959,1109.1,1109.0,1.37057051]
[1610362787188,4.00959,1109.1,1108.7,1.37080314]
[1610362788090,5.82349,1109.1,1108.7,1.37080314]
[1610362788689,5.82349,1109.1,1108.5,1.37091442]
[1610362789090,4.00959,1108.6,1108.5,1.37091442]
[1610362789893,4.00959,1108.6,1108.5,1.442e-05]
[1610362790291,4.00959,1108.6,1108.3,71.3242]
[1610362790892,1.7891,1108.7,1108.3,73.1104]
[1610362791093,1.7891,1108.7,1108.5,4.00959]
[1610362791293,1.5351,1108.8,1108.5,4.00959]
[1610362791693,1.8139,1109.1,1108.5,35.82659]
[1610362792094,1.4975,1109.9,1108.5,37.57839]
[1610362792497,1.4975,1109.9,1108.7,54.79709301]
[1610362792694,32.31989803,1110.4,1108.8,30.0]
[1610362792898,43.85074414,1110.8,1109.0,0.2740104]
[1610362793096,13.56192455,1111.0,1110.3,4.00959]
[1610362793097,4.00959,1110.4,1110.3,4.00959]
[1610362793294,6.29289,1110.4,1110.3,4.00959]
[1610362793495,2.2833,1110.4,1110.3,4.00959]
[1610362794496,1.9848,1110.7,1110.3,4.00959]
[1610362794900,43.98181324,1111.5,1110.3,4.00959]
[1610362795097,4.00959,1110.8,1110.6,4.00959]
[1610362795499,4.00959,1110.8,1110.2,2.0501]
[1610362795796,4.00959,1110.8,1110.3,10.0732]
[1610362796297,4.00959,1110.8,1110.3,11.8646]
[1610362796897,4.00959,1110.8,1110.3,10.0732]
[1610362797098,4.00959,1110.8,1110.4,4.00959]
[1610362797498,5.81489,1110.8,1110.4,57.61729]
[1610362797699,4.00959,1110.8,1110.4,57.61729]
[1610362797898,4.00959,1110.8,1110.4,59.44269]
[1610362798099,4.00959,1110.8,1110.4,57.61729]
[1610362798499,4.00959,1110.8,1110.4,53.6077]
[1610362799101,4.00959,1110.5,1110.4,55.3958]
[1610362799501,4.00959,1110.5,1110.4,53.6077]
[1610362800302,5.81869,1110.5,1110.4,53.6077]
[1610362800502,4.00959,1110.5,1110.4,53.6077]
[1610362800902,4.00959,1110.5,1110.0,73.3616]
[1610362801102,4.00959,1110.1,1110.0,73.3616]
[1610362801702,2.4744,1110.5,1110.0,73.3616]
[1610362803004,2.4744,1110.5,1110.4,4.00959]
[1610362803203,2.4744,1110.5,1110.0,75.1681]
[1610362803403,2.4744,1110.5,1110.0,73.3616]
[1610362803804,4.00959,1110.7,1110.0,73.3616]
[1610362804604,4.00959,1110.7,1110.0,75.1623]
[1610362805004,4.00959,1110.7,1110.5,4.00959]
[1610362805204,5.79179,1110.7,1110.5,5.83419]
[1610362805406,4.00959,1110.7,1110.5,4.00959]
[1610362806106,2.008,1110.8,1110.5,4.00959]
[1610362806508,2.2789,1111.2,1110.5,4.00959]
[1610362806910,43.67417552,1111.6,1110.5,4.00959]
[1610362807107,4.00959,1110.6,1110.3,4.00959]
[1610362808709,2.251,1111.0,1110.3,4.00959]
[1610362809111,4.00959,1110.7,1110.5,4.00959]
[1610362809515,2.251,1111.0,1110.5,4.00959]
[1610362811119,4.00959,1110.9,1110.7,4.00959]
[1610362811720,2.251,1111.0,1110.7,4.00959]
[1610362811921,2.251,1111.0,1110.7,34.00959]
[1610362812323,68.9377,1111.7,1110.9,1.0608]
[1610362812521,68.9377,1111.7,1111.0,3.9392]
[1610362812721,68.9377,1111.7,1111.1,30.0]
[1610362812922,32.08089398,1112.4,1111.1,30.0]
[1610362813128,32.08089398,1112.4,1112.2,4.00959]
[1610362813323,6.3147,1112.5,1112.2,4.00959]
[1610362814128,32.0727961,1112.7,1112.2,4.00959]
[1610362814328,32.08365416,1112.9,1112.2,5.78399]
[1610362814528,43.48198221,1113.1,1112.2,4.00959]
[1610362814926,43.49163557,1113.2,1112.2,4.00959]
[1610362815125,37.48761787,1113.2,1113.1,4.00959]
[1610362815326,47.49643178,1113.3,1113.1,4.00959]
[1610362815526,15.51771846,1113.8,1113.1,4.00959]
[1610362815527,43.50182059,1113.4,1113.1,4.00959]
[1610362815926,43.52454493,1113.5,1113.1,4.00959]
[1610362816126,45.33464493,1113.5,1113.1,4.00959]
[1610362816326,43.54001648,1113.4,1112.3,1.9536]
[1610362816526,45.13471648,1113.4,1112.3,1.9536]
[1610362816726,1.5947,1113.4,1112.3,1.9536]
[1610362817026,1.5947,1113.4,1112.9,4.00959]
[1610362817226,0.4597,1113.4,1112.9,4.00959]
[1610362817427,43.52787851,1113.6,1112.9,4.00959]
[1610362817625,42.87777851,1113.6,1112.9,4.00959]
[1610362817827,41.53247173,1113.8,1112.9,4.00959]
[1610362818029,41.54002218,1113.9,1113.2,70.2488]
[1610362818429,34.29800083,1114.0,1113.2,70.2488]
[1610362818633,36.11430083,1114.0,1113.2,70.2488]
[1610362818828,34.3178598,1114.1,1113.2,70.2488]
[1610362819028,34.3178598,1114.1,1114.0,4.00959]
[1610362819429,1.7805,1114.1,1114.0,4.00959]
[1610362819729,34.36615415,1114.2,1114.0,4.00959]
[1610362819930,34.38728835,1114.3,1114.0,4.00959]
[1610362820133,34.40793341,1114.4,1113.4,2.1757]
[1610362820529,34.40364132,1114.3,1113.4,3.9683]
[1610362820730,34.40364132,1114.3,1113.4,2.1757]
[1610362821130,38.40073866,1114.2,1113.9,4.00959]
[1610362821330,4.00959,1114.2,1113.9,4.00959]
[1610362821730,4.00959,1114.2,1113.4,2.1757]
[1610362823135,4.00959,1113.7,1113.5,4.00959]
[1610362824034,34.34316977,1114.3,1113.5,4.00959]
[1610362824335,34.32183383,1114.4,1113.5,4.00959]
[1610362825135,4.00959,1114.3,1114.2,4.00959]
[1610362825938,1.5617,1114.5,1114.2,4.00959]
[1610362826137,34.28286789,1114.6,1114.2,4.00959]
[1610362826742,34.34036808,1114.7,1114.2,4.00959]
[1610362827242,4.00959,1114.3,1114.2,4.00959]
[1610362827742,4.00959,1114.3,1113.8,69.6401]
[1610362829143,4.00959,1114.1,1113.8,73.64969]
[1610362830343,41.51732318,1114.5,1113.8,73.64969]
[1610362830544,41.5211519,1114.6,1113.8,75.66789]
[1610362830844,1.6934,1114.7,1113.8,75.66789]
[1610362830845,43.2797647,1114.7,1113.8,75.66789]
[1610362831146,4.00959,1114.0,1113.8,75.66789]
[1610362831745,43.2797647,1114.7,1113.8,75.66789]
[1610362832448,41.54339409,1114.6,1113.8,75.66789]
[1610362832947,51.55830034,1114.6,1113.8,75.66789]
[1610362833149,4.00959,1114.5,1114.1,4.00959]
[1610362834053,4.00959,1114.5,1113.8,69.6401]
[1610362835154,4.00959,1113.9,1113.8,69.6401]
[1610362836754,4.00959,1113.9,1113.1,2.319]
[1610362836954,4.00959,1113.9,1112.8,2.3893]
[1610362837154,31.76051275,1114.1,1113.0,4.00959]
[1610362837354,10.01550648,1113.9,1112.8,2.2923]
[1610362837957,32.02525521,1113.8,1112.8,2.2923]
[1610362838156,34.21535521,1113.8,1112.8,2.2923]
[1610362838359,32.02584167,1113.7,1112.0,0.2733235]
[1610362838757,53.39713215,1113.7,1111.9,0.27334011]
[1610362838958,53.39713215,1113.7,1111.9,2.07884011]
[1610362839158,4.00959,1113.1,1112.8,4.00959]
[1610362839557,2.1077,1113.3,1112.8,4.00959]
[1610362840557,2.1901,1113.8,1112.8,4.00959]
[1610362841157,4.00959,1113.7,1113.5,4.00959]
[1610362841559,2.1901,1113.8,1113.5,4.00959]
[1610362841959,9.96642194,1113.7,1113.5,4.00959]
[1610362842160,11.77362194,1113.7,1113.5,4.00959]
[1610362842360,9.96642194,1113.7,1113.5,4.00959]
[1610362842761,9.96642194,1113.7,1113.5,5.78089]
[1610362843163,3.75532194,1113.7,1113.5,5.78089]
[1610362843360,2.44842194,1113.7,1113.5,5.78089]
[1610362843562,17.50349477,1114.9,1113.5,5.78089]
[1610362843563,47.68776577,1114.9,1113.5,5.78089]
[1610362843762,4.00959,1114.9,1113.5,7.79719]
[1610362843961,5.80319,1114.9,1113.5,7.79719]
[1610362844163,4.00959,1114.9,1113.5,7.79719]
[1610362844963,4.00959,1114.9,1113.6,1.36483328]
[1610362845164,4.00959,1114.6,1114.3,4.00959]
[1610362845864,43.70501268,1115.2,1114.3,4.00959]
[1610362846064,43.70501268,1115.2,1114.3,5.70739]
[1610362846465,45.50831268,1115.2,1114.4,57.2445]
[1610362846766,1.8033,1115.2,1114.4,57.2445]
[1610362847164,46.17559978,1115.3,1114.4,57.2445]
[1610362847365,4.00959,1114.9,1114.8,4.00959]
[1610362847566,4.00959,1114.9,1114.4,57.2445]
[1610362847766,5.79259,1114.9,1114.4,57.2445]
[1610362847965,4.00959,1114.9,1114.4,57.2445]
[1610362848965,5.82429,1114.9,1114.4,57.2445]
[1610362849368,4.00959,1114.5,1114.4,57.2445]
[1610362850067,4.00959,1114.5,1113.9,61.3367]
[1610362850267,4.00959,1114.5,1113.0,0.27302597]
[1610362850674,5.81749,1114.5,1112.8,0.27308854]
[1610362850873,5.81749,1114.5,1112.7,0.54617707]
[1610362850874,49.52576406,1114.5,1112.7,0.27310412]
[1610362851274,4.00959,1113.9,1113.7,4.00959]
[1610362851675,4.00959,1113.9,1112.8,0.27308656]
[1610362852577,5.82529,1113.9,1112.8,0.27308656]
[1610362852777,4.00959,1113.9,1112.8,2.06208656]
[1610362852977,4.00959,1113.9,1112.8,0.27308656]
[1610362853378,2.3225,1114.2,1113.6,4.00959]
[1610362853379,4.00959,1113.7,1113.6,4.00959]
[1610362853778,4.00959,1113.7,1112.9,1.36546501]
[1610362854579,4.00959,1113.7,1112.9,3.17176501]
[1610362854979,2.3225,1114.2,1112.9,3.17176501]
[1610362855178,45.67444898,1114.6,1112.9,5.59496501]
[1610362855379,4.00959,1114.1,1114.0,4.00959]
[1610362855980,4.00959,1114.1,1112.9,5.8680279]
[1610362856181,5.78469,1114.1,1112.9,4.50256289]
[1610362856380,4.00959,1114.1,1112.9,4.50256289]
[1610362857382,1.781,1114.1,1113.7,4.00959]
[1610362857582,34.14834302,1114.6,1113.7,4.00959]
[1610362857983,45.50472461,1114.6,1113.7,4.00959]
[1610362858597,36.21472542,1114.6,1113.7,4.00959]
[1610362858789,3.9355,1114.6,1113.7,4.00959]
[1610362859284,4.00959,1114.3,1114.1,4.00959]
[1610362859885,4.00959,1114.3,1113.5,2.0444]
[1610362860486,4.00959,1114.3,1113.5,59.9641]
[1610362861290,4.00959,1114.0,1113.7,4.00959]
[1610362861891,2.1208,1114.6,1113.7,4.00959]
[1610362862294,43.51217353,1114.7,1113.7,4.00959]
[1610362862892,43.55002068,1114.8,1113.7,4.00959]
[1610362863092,32.1524469,1114.8,1113.7,4.00959]
[1610362863293,32.1524469,1114.8,1113.7,5.81959]
[1610362863495,4.00959,1114.8,1114.4,4.00959]
[1610362864301,1.8444,1114.9,1114.4,4.00959]
[1610362864502,43.68104901,1115.1,1114.4,4.00959]
[1610362865102,43.71746101,1115.2,1114.4,4.00959]
[1610362865302,43.71746101,1115.2,1114.4,6.23239]
[1610362865504,2.4494,1115.3,1115.1,4.00959]
[1610362865903,43.80665029,1115.6,1115.1,4.00959]
[1610362866304,43.80665029,1115.6,1115.1,9.00959]
[1610362866515,43.85721253,1115.7,1115.1,9.00959]
[1610362867105,43.85721253,1115.7,1115.1,5.0]
[1610362867506,4.00959,1115.2,1115.1,5.0]
[1610362872307,5.71949,1115.2,1115.1,5.0]
[1610362874508,49.84357724,1115.2,1115.1,5.0]
[1610362874910,51.65017724,1115.2,1115.1,5.0]
[1610362875111,22.4745132,1115.2,1115.1,5.0]
[1610362875509,22.4745132,1115.2,1115.1,2.3409]
[1610362875709,8.82674868,1115.2,1115.1,2.3409]
[1610362876309,8.82674868,1115.2,1114.3,60.815]
[1610362876510,80.18424868,1115.2,1114.0,64.6882]
[1610362876709,11.37106094,1114.6,1114.0,64.6882]
[1610362876910,43.92770901,1114.6,1114.0,64.6882]
[1610362877112,43.90719551,1114.5,1114.0,64.6882]
[1610362877509,4.00959,1114.1,1114.0,64.6882]
[1610362877711,5.86669,1114.1,1114.0,64.6882]
[1610362878110,49.72442696,1114.1,1114.0,64.6882]
[1610362878513,49.72442696,1114.1,1114.0,62.9142]
[1610362878712,8.98700772,1114.1,1113.2,70.9671]
[1610362878910,8.98700772,1114.1,1112.2,0.27325097]
[1610362879111,43.84734294,1113.9,1112.1,0.27328431]
[1610362879312,43.83791708,1113.7,1111.9,0.27331187]
[1610362879509,45.51921708,1113.7,1112.4,4.00959]
[1610362880710,45.51921708,1113.7,1112.2,2.1968]
[1610362880911,43.83729976,1113.6,1112.2,2.1968]
[1610362881509,4.00959,1112.3,1112.2,6.20639]
[1610362881911,4.00959,1112.3,1112.2,2.1968]
[1610362884812,4.00959,1112.3,1111.7,68.1799]
[1610362885616,4.00959,1112.1,1111.7,68.1799]
[1610362886614,4.00959,1112.1,1111.4,0.27343926]
[1610362886815,4.00959,1112.1,1111.3,0.27346681]
[1610362887614,4.00959,1111.9,1111.6,4.00959]
[1610362887815,4.00959,1111.9,1111.3,0.27346681]
[1610362888313,4.00959,1111.9,1111.2,72.91838743]
[1610362889714,4.00959,1111.6,1111.3,4.00959]
[1610362889913,2.0,1112.2,1111.3,4.00959]
[1610362890115,2.0,1112.2,1111.3,5.59489]
[1610362890914,2.0008,1112.5,1111.3,5.59489]
[1610362891614,2.0008,1112.5,1111.5,4.00959]
[1610362891814,70.7839,1112.7,1111.5,4.00959]
[1610362893014,70.7839,1112.7,1111.3,1.5853]
[1610362893715,4.00959,1111.4,1111.3,1.5853]
[1610362895116,4.00959,1111.4,1111.2,72.6449]
[1610362895720,4.00959,1111.4,1110.6,0.82085737]
[1610362895721,5.57099,1111.4,1110.9,60.0958]
[1610362895919,5.57099,1111.4,1110.6,0.27365813]
[1610362896120,5.57099,1111.4,1110.4,0.27369806]
[1610362896521,5.57099,1111.4,1110.1,0.27376888]
[1610362896918,5.57099,1111.4,1109.9,0.82130663]
[1610362896919,5.57099,1111.4,1109.9,0.27378999]
[1610362897519,5.57099,1111.4,1109.8,0.27382612]
[1610362897719,4.00959,1109.9,1109.8,0.27382612]
[1610362897921,4.00959,1109.9,1109.7,0.27384452]
[1610362898723,4.00959,1109.9,1109.8,0.27384166]
[1610362899526,4.00959,1109.9,1109.7,0.27384806]
[1610362899923,4.00959,1109.9,1109.6,0.27385548]
[1610362900524,4.00959,1109.9,1109.5,2.53308634]
[1610362900927,4.00959,1109.9,1109.5,2.2592]
[1610362900928,13.29209,1109.9,1109.5,2.2592]
[1610362901129,13.29209,1109.9,1109.4,0.27389239]
[1610362901327,13.29209,1109.9,1109.3,0.27394135]
[1610362901529,13.29209,1109.9,1109.2,0.27395667]
[1610362901732,4.00959,1109.3,1109.2,0.27395667]
[1610362901939,4.00959,1109.3,1109.1,0.54791334]
[1610362901940,4.00959,1109.3,1109.1,0.27399492]
[1610362902342,4.00959,1109.3,1108.8,1.09582668]
[1610362902343,4.00959,1109.3,1108.8,0.27405844]
[1610362902552,61.5098,1109.0,1108.6,0.54812927]
[1610362902737,4.00959,1109.3,1108.6,0.54812927]
[1610362902936,4.00959,1109.3,1108.6,0.27410372]
[1610362903150,5.83519,1109.3,1108.5,0.54971115]
[1610362903336,5.83519,1109.3,1108.3,0.82231115]
[1610362903337,5.83519,1109.3,1108.4,0.02323637]
[1610362903734,5.83519,1109.3,1108.3,0.27421286]
[1610362903735,4.00959,1108.5,1108.3,0.27421286]
[1610362904141,4.00959,1108.5,1107.9,0.82270194]
[1610362905334,6.24979,1108.5,1107.7,0.82281194]
[1610362905531,6.24979,1108.5,1107.5,0.82301096]
[1610362905731,4.00959,1107.6,1107.5,0.82301096]
[1610362905931,4.00959,1107.6,1107.3,0.8231555]
[1610362906333,4.00959,1107.6,1107.2,0.82321797]
[1610362906734,4.00959,1107.6,1107.0,0.82332801]
[1610362906933,1.9704,1108.0,1107.0,0.82332801]
[1610362907134,1.9704,1108.0,1107.2,0.82315979]
[1610362907334,1.9704,1108.0,1107.2,2.74185979]
[1610362907737,4.00959,1107.7,1107.6,4.00959]
[1610362907936,4.00959,1107.7,1107.3,0.82314138]
[1610362908335,4.00959,1107.7,1107.2,2.74185246]
[1610362908839,4.00959,1107.7,1107.2,1.9187]
[1610362909236,4.00959,1107.7,1107.0,0.82335756]
[1610362909437,4.00959,1107.7,1106.9,0.823396]
[1610362909637,1.9704,1108.0,1106.9,0.823396]
[1610362909837,4.00959,1107.9,1107.6,4.00959]
[1610362910237,4.00959,1107.9,1107.1,0.82332342]
[1610362911858,4.00959,1107.2,1106.9,3.30501807]
[1610362912047,4.00959,1107.2,1106.9,2.4816]
[1610362912644,4.00959,1107.2,1106.7,0.82354957]
[1610362912837,4.00959,1107.2,1106.6,0.82355273]
[1610362913238,4.00959,1107.2,1106.7,0.82348913]
[1610362913438,4.00959,1107.2,1106.6,0.82358217]
[1610362913839,4.00959,1106.7,1106.6,0.54908519]
[1610362914243,4.00959,1106.7,1106.5,2.94652778]
[1610362914244,4.00959,1106.7,1106.5,0.27456898]
[1610362914640,4.00959,1106.7,1106.4,0.27460003]
[1610362915841,4.00959,1106.5,1106.4,0.27460003]
[1610362916041,4.00959,1106.5,1106.3,0.27464555]
[1610362916441,4.00959,1106.5,1106.2,0.27469104]
[1610362917041,4.00959,1106.5,1106.0,0.12484272]
[1610362917440,4.00959,1106.5,1105.8,1.09870336]
[1610362917441,4.00959,1106.5,1105.8,0.82411105]
[1610362917840,4.00959,1106.1,1106.0,4.00959]
[1610362918040,2.4576,1106.7,1106.0,4.00959]
[1610362919640,2.4576,1106.7,1106.0,4.8336553]
[1610362919840,6.46719,1106.7,1106.2,4.00959]
[1610362920941,6.46719,1106.7,1106.0,0.8240653]
[1610362921744,4.00959,1106.1,1105.8,1.8942]
[1610362922241,4.00959,1106.1,1105.7,0.82418987]
[1610362922442,4.00959,1106.1,1105.6,0.82426568]
[1610362923642,4.00959,1106.1,1105.5,3.0279491]
[1610362923841,2.1122,1106.3,1105.6,0.82429155]
[1610362924244,2.1122,1106.3,1105.7,0.82423734]
[1610362924442,2.1122,1106.3,1105.7,2.65093734]
[1610362924642,2.1122,1106.3,1105.8,0.82413854]
[1610362925041,2.1122,1106.3,1105.9,0.82413684]
[1610362925241,3.9314,1106.3,1105.8,0.8241863]
[1610362925442,2.1122,1106.3,1105.8,0.8241863]
[1610362925742,4.00959,1106.1,1105.6,0.82425149]
[1610362926742,4.00959,1106.1,1105.5,0.82434339]
[1610362927044,4.00959,1106.1,1105.7,0.2747921]
[1610362927442,4.00959,1106.1,1105.4,0.82437629]
[1610362927443,4.00959,1106.1,1105.4,0.28519489]
[1610362927642,4.00959,1106.1,1105.2,1.09932652]
[1610362927842,4.00959,1105.3,1105.0,1.09960313]
[1610362928044,4.00959,1105.3,1104.8,1.09981146]
[1610362928444,4.00959,1105.3,1104.3,1.64992641]
[1610362928845,4.00959,1105.3,1104.1,1.65032345]
[1610362929145,4.00959,1105.3,1103.9,1.65042789]
[1610362929342,5.80739,1105.3,1103.9,1.65042789]
[1610362929542,5.80739,1105.3,1103.8,1.65080945]
[1610362929745,1.7978,1105.3,1103.9,1.65073833]
[1610362929943,1.7978,1105.3,1103.9,1.6894]
[1610362930542,1.7978,1105.3,1104.7,74.0604]
[1610362930743,1.7978,1105.3,1103.9,1.6894]
[1610362930943,1.7978,1105.3,1103.6,2.2994]
[1610362931143,2.4619,1105.5,1103.6,2.2994]
[1610362931744,4.00959,1104.1,1103.7,4.00959]